[Event "GrandPrix_30.05"]
[Site "Chess.com"]
[Date "2020.05.30"]
[Round "2"]
[White "ly4o"]
[Black "PresidenteMNE"]
[Result "1-0"]
[WhiteElo "2032"]
[BlackElo "2111"]
[TimeControl "600+2"]
[EndTime "8:45:57 PDT"]
[Termination "ly4o won by resignation"]

1. d4 {[%clk 0:10:01.9]} 1... e5 {[%clk 0:09:59.5]} 2. dxe5 {[%clk 0:10:01.8]}
2... d6 {[%clk 0:10:00.5]} 3. Nf3 {[%clk 0:10:02.4]} 3... Bg4 {[%clk 0:10:01.3]}
4. exd6 {[%clk 0:10:03]} 4... Bxd6 {[%clk 0:09:59.1]} 5. Qd4 {[%clk 0:09:52.6]}
5... Nf6 {[%clk 0:09:55.9]} 6. Bg5 {[%clk 0:09:43.7]} 6... Nc6 {[%clk
0:09:38.7]} 7. Qe3+ {[%clk 0:09:43]} 7... Be6 {[%clk 0:09:22.1]} 8. Nc3 {[%clk
0:09:38.6]} 8... Qe7 {[%clk 0:09:11.8]} 9. O-O-O {[%clk 0:09:37.2]} 9... O-O-O
{[%clk 0:09:12.2]} 10. Ne4 {[%clk 0:09:15.3]} 10... Rhe8 {[%clk 0:08:32.5]} 11.
Nxd6+ {[%clk 0:09:13.2]} 11... Rxd6 {[%clk 0:08:33.2]} 12. Rxd6 {[%clk
0:09:10.5]} 12... Qxd6 {[%clk 0:08:35.1]} 13. Bxf6 {[%clk 0:09:07.6]} 13... gxf6
{[%clk 0:08:32.1]} 14. Qd2 {[%clk 0:09:03.8]} 14... Qc5 {[%clk 0:08:27.5]} 15.
e3 {[%clk 0:09:03.1]} 15... Bxa2 {[%clk 0:08:00.8]} 16. Bd3 {[%clk 0:08:52.9]}
16... Be6 {[%clk 0:07:49]} 17. Qc3 {[%clk 0:08:41.5]} 17... Qxc3 {[%clk
0:07:45.9]} 18. bxc3 {[%clk 0:08:43.4]} 18... Ne5 {[%clk 0:06:43.1]} 19. Nd4
{[%clk 0:08:38.4]} 19... c5 {[%clk 0:06:38.6]} 20. Nb5 {[%clk 0:08:32.6]} 20...
Rd8 {[%clk 0:06:33.4]} 21. Nxa7+ {[%clk 0:08:32.3]} 21... Kb8 {[%clk 0:06:32.6]}
22. Nb5 {[%clk 0:08:33.2]} 22... Nxd3+ {[%clk 0:06:26.9]} 23. cxd3 {[%clk
0:08:35.1]} 23... Rxd3 {[%clk 0:06:27.7]} 24. Rd1 {[%clk 0:08:31.6]} 24... Rxd1+
{[%clk 0:06:26.5]} 25. Kxd1 {[%clk 0:08:33.5]} 25... Kc8 {[%clk 0:06:20.2]} 26.
Nd6+ {[%clk 0:08:31.5]} 26... Kc7 {[%clk 0:05:59.7]} 27. Ne8+ {[%clk 0:08:31.2]}
27... Kc6 {[%clk 0:06:00.8]} 28. Nxf6 {[%clk 0:08:32.8]} 28... h6 {[%clk
0:05:55.1]} 29. h4 {[%clk 0:07:55.7]} 29... b5 {[%clk 0:05:52.8]} 30. g4 {[%clk
0:07:45.8]} 30... b4 {[%clk 0:05:23.1]} 31. cxb4 {[%clk 0:07:47.7]} 31... cxb4
{[%clk 0:05:25]} 32. g5 {[%clk 0:07:46.6]} 32... hxg5 {[%clk 0:05:24.8]} 33. h5
{[%clk 0:07:40.7]} 33... b3 {[%clk 0:04:56.9]} 34. e4 {[%clk 0:06:59.3]} 34...
Kc5 {[%clk 0:03:05.4]} 35. Kc1 {[%clk 0:06:50.3]} 35... Kd4 {[%clk 0:02:46.4]}
36. h6 {[%clk 0:06:28.5]} 36... Kc3 {[%clk 0:02:27]} 37. Nd5+ {[%clk 0:06:28.9]}
37... Kd4 {[%clk 0:02:20.6]} 38. h7 {[%clk 0:06:26.5]} 38... Kxe4 {[%clk
0:02:19.2]} 39. Nc3+ {[%clk 0:06:22.5]} 1-0

[Event "GrandPrix_30.05"]
[Site "Chess.com"]
[Date "2020.05.30"]
[Round "2"]
[White "grunbergmihai"]
[Black "RussianChessFighter"]
[Result "0-1"]
[WhiteElo "2227"]
[BlackElo "2190"]
[TimeControl "600+2"]
[EndTime "8:46:32 PDT"]
[Termination "RussianChessFighter won by resignation"]

1. Nf3 {[%clk 0:10:01.9]} 1... Nf6 {[%clk 0:09:55.2]} 2. c4 {[%clk 0:09:53]}
2... g6 {[%clk 0:09:46.1]} 3. g3 {[%clk 0:09:54]} 3... Bg7 {[%clk 0:09:47.3]} 4.
Bg2 {[%clk 0:09:55.9]} 4... O-O {[%clk 0:09:49]} 5. O-O {[%clk 0:09:57.5]} 5...
d6 {[%clk 0:09:50.8]} 6. d4 {[%clk 0:09:58]} 6... Nc6 {[%clk 0:09:52.2]} 7. Nc3
{[%clk 0:09:58.6]} 7... e5 {[%clk 0:09:52.8]} 8. d5 {[%clk 0:09:56.8]} 8... Nb8
{[%clk 0:09:53.7]} 9. e4 {[%clk 0:09:57.2]} 9... a5 {[%clk 0:09:55.1]} 10. Ne1
{[%clk 0:09:37.1]} 10... Na6 {[%clk 0:09:55.4]} 11. Nd3 {[%clk 0:09:37.7]} 11...
Nd7 {[%clk 0:09:56.8]} 12. Rb1 {[%clk 0:08:53]} 12... Ndc5 {[%clk 0:09:51.9]}
13. b3 {[%clk 0:08:50.2]} 13... f5 {[%clk 0:09:47.2]} 14. a3 {[%clk 0:08:32.1]}
14... Nxd3 {[%clk 0:09:22.1]} 15. Qxd3 {[%clk 0:08:32.4]} 15... Nc5 {[%clk
0:09:23.8]} 16. Qc2 {[%clk 0:08:22.8]} 16... a4 {[%clk 0:09:24.4]} 17. b4 {[%clk
0:08:08]} 17... Nb3 {[%clk 0:09:24.7]} 18. Nxa4 {[%clk 0:07:24.2]} 18... Nxc1
{[%clk 0:09:19.8]} 19. Rfxc1 {[%clk 0:07:09.5]} 19... Bd7 {[%clk 0:09:20.3]} 20.
b5 {[%clk 0:07:03]} 20... b6 {[%clk 0:09:17.8]} 21. Ra1 {[%clk 0:06:50.3]} 21...
f4 {[%clk 0:09:07.9]} 22. Nb2 {[%clk 0:06:34.4]} 22... f3 {[%clk 0:08:36.6]} 23.
Bf1 {[%clk 0:06:35]} 23... h5 {[%clk 0:08:28.6]} 24. Nd3 {[%clk 0:06:11.5]}
24... Bh6 {[%clk 0:07:58.9]} 25. Rcb1 {[%clk 0:06:00.6]} 25... h4 {[%clk
0:07:54.3]} 26. a4 {[%clk 0:05:58]} 26... hxg3 {[%clk 0:07:54.7]} 27. fxg3
{[%clk 0:05:35.3]} 27... Be3+ {[%clk 0:07:53.7]} 28. Nf2 {[%clk 0:05:27.2]}
28... Qg5 {[%clk 0:07:42.6]} 29. Rb3 {[%clk 0:05:14.8]} 29... Bc5 {[%clk
0:07:34.3]} 30. Kh1 {[%clk 0:04:53.9]} 30... Kg7 {[%clk 0:07:20.5]} 31. Ra2
{[%clk 0:04:11.4]} 31... Rf7 {[%clk 0:07:18.2]} 32. Qd2 {[%clk 0:03:52.5]} 32...
Qxd2 {[%clk 0:07:10]} 33. Rxd2 {[%clk 0:03:51.5]} 33... Rxa4 {[%clk 0:07:11.2]}
34. Rb1 {[%clk 0:03:25]} 34... g5 {[%clk 0:06:53.8]} 35. Nd3 {[%clk 0:03:19.4]}
35... Be3 {[%clk 0:06:48.8]} 36. Rc2 {[%clk 0:03:15.8]} 36... g4 {[%clk
0:06:49.2]} 37. Nf2 {[%clk 0:03:07.5]} 37... Bd4 {[%clk 0:06:45.4]} 38. Nd3
{[%clk 0:02:45.8]} 38... Kg6 {[%clk 0:06:41.5]} 39. Rb4 {[%clk 0:02:42.4]} 39...
Ra3 {[%clk 0:06:39.9]} 40. Rb1 {[%clk 0:02:42.8]} 40... Rf8 {[%clk 0:06:38.6]}
41. Nf2 {[%clk 0:02:41.7]} 41... Rfa8 {[%clk 0:06:35.3]} 42. h3 {[%clk 0:02:30]}
42... gxh3 {[%clk 0:06:13.1]} 43. Bxh3 {[%clk 0:02:24.4]} 43... Bxf2 {[%clk
0:06:10]} 44. Bxd7 {[%clk 0:02:21.8]} 44... Rh8+ {[%clk 0:06:08.3]} 0-1

[Event "GrandPrix_30.05"]
[Site "Chess.com"]
[Date "2020.05.30"]
[Round "2"]
[White "Tesla37"]
[Black "Malysch"]
[Result "1-0"]
[WhiteElo "2853"]
[BlackElo "2361"]
[TimeControl "600+2"]
[EndTime "8:46:48 PDT"]
[Termination "Tesla37 won by resignation"]

1. e4 {[%clk 0:10:01.9]} 1... Nf6 {[%clk 0:09:59.7]} 2. e5 {[%clk 0:10:02.2]}
2... Nd5 {[%clk 0:09:53.1]} 3. d4 {[%clk 0:10:03]} 3... d6 {[%clk 0:09:47.5]} 4.
Nf3 {[%clk 0:10:03.5]} 4... dxe5 {[%clk 0:09:24.2]} 5. Nxe5 {[%clk 0:10:02.7]}
5... c6 {[%clk 0:09:25.1]} 6. Be2 {[%clk 0:09:51.4]} 6... Bf5 {[%clk 0:09:22.9]}
7. O-O {[%clk 0:09:51]} 7... Nd7 {[%clk 0:09:22.7]} 8. c4 {[%clk 0:09:47]} 8...
Nb4 {[%clk 0:08:58]} 9. Ng4 {[%clk 0:09:44.7]} 9... e5 {[%clk 0:08:10.3]} 10.
dxe5 {[%clk 0:09:40.8]} 10... Nc2 {[%clk 0:06:57.9]} 11. Ne3 {[%clk 0:09:27.9]}
11... Nxe3 {[%clk 0:06:57.3]} 12. Bxe3 {[%clk 0:08:57.5]} 12... Nxe5 {[%clk
0:06:57.3]} 13. Qb3 {[%clk 0:08:57.8]} 13... Qc7 {[%clk 0:06:26.5]} 14. Bf4
{[%clk 0:08:47.9]} 14... Bd6 {[%clk 0:06:18.4]} 15. Nc3 {[%clk 0:07:46.1]} 15...
O-O {[%clk 0:06:09.5]} 16. Bg3 {[%clk 0:07:46.2]} 16... Rfe8 {[%clk 0:06:02.3]}
17. Rad1 {[%clk 0:07:42.2]} 17... Rad8 {[%clk 0:05:51.5]} 18. Rfe1 {[%clk
0:07:28.5]} 18... h6 {[%clk 0:05:25.6]} 19. Bf1 {[%clk 0:07:06.2]} 19... Kf8
{[%clk 0:01:44.5]} 20. c5 {[%clk 0:06:37.4]} 20... Bxc5 {[%clk 0:01:18.1]} 21.
Rxe5 {[%clk 0:05:55.6]} 21... Rxe5 {[%clk 0:00:49.5]} 22. Bxe5 {[%clk
0:05:52.1]} 1-0

[Event "GrandPrix_30.05"]
[Site "Chess.com"]
[Date "2020.05.30"]
[Round "2"]
[White "SuperFineHipster"]
[Black "Alexander_Moskalenko"]
[Result "1-0"]
[WhiteElo "2187"]
[BlackElo "2347"]
[TimeControl "600+2"]
[EndTime "8:46:54 PDT"]
[Termination "SuperFineHipster won by resignation"]

1. Nf3 {[%clk 0:10:01.7]} 1... d5 {[%clk 0:09:43.8]} 2. g3 {[%clk 0:10:01.8]}
2... c6 {[%clk 0:09:36.8]} 3. Bg2 {[%clk 0:10:02.1]} 3... Bg4 {[%clk 0:09:33.7]}
4. O-O {[%clk 0:10:00.4]} 4... Nd7 {[%clk 0:09:29.6]} 5. d3 {[%clk 0:10:01.3]}
5... e6 {[%clk 0:09:25]} 6. Nbd2 {[%clk 0:09:57.1]} 6... Bd6 {[%clk 0:09:24.8]}
7. b3 {[%clk 0:09:49.5]} 7... Qf6 {[%clk 0:08:59.8]} 8. Rb1 {[%clk 0:09:47.5]}
8... Ne7 {[%clk 0:09:00]} 9. h3 {[%clk 0:08:36.6]} 9... Bxf3 {[%clk 0:08:50.3]}
10. Nxf3 {[%clk 0:08:34.8]} 10... Ne5 {[%clk 0:08:45.4]} 11. Nh2 {[%clk
0:08:23.9]} 11... g5 {[%clk 0:08:39.2]} 12. d4 {[%clk 0:08:16.5]} 12... Nd7
{[%clk 0:08:35.7]} 13. e4 {[%clk 0:08:14.8]} 13... dxe4 {[%clk 0:08:35.9]} 14.
Bxe4 {[%clk 0:08:16.7]} 14... h5 {[%clk 0:08:36.4]} 15. b4 {[%clk 0:06:46.2]}
15... Nd5 {[%clk 0:08:30.6]} 16. Qd2 {[%clk 0:06:21.7]} 16... h4 {[%clk
0:08:11.1]} 17. c4 {[%clk 0:05:59.5]} 17... hxg3 {[%clk 0:07:25]} 18. fxg3
{[%clk 0:05:57.2]} 18... Qh6 {[%clk 0:07:25.8]} 19. cxd5 {[%clk 0:05:06.8]}
19... Qxh3 {[%clk 0:07:22.4]} 20. dxe6 {[%clk 0:05:07.3]} 20... Qxg3+ {[%clk
0:07:20]} 21. Qg2 {[%clk 0:05:06]} 21... Qxh2+ {[%clk 0:07:05.6]} 22. Qxh2
{[%clk 0:05:02.3]} 22... Bxh2+ {[%clk 0:07:07.5]} 23. Kg2 {[%clk 0:04:59.2]}
23... fxe6 {[%clk 0:07:07.3]} 24. Rh1 {[%clk 0:04:41.4]} 24... Nf6 {[%clk
0:07:06.9]} 25. Bg6+ {[%clk 0:04:38.3]} 25... Ke7 {[%clk 0:07:07.9]} 26. Rxh2
{[%clk 0:04:37.9]} 26... Rxh2+ {[%clk 0:07:02.6]} 27. Kxh2 {[%clk 0:04:37.2]}
27... Rd8 {[%clk 0:07:03.1]} 28. b5 {[%clk 0:04:24.3]} 28... Rxd4 {[%clk
0:06:57.5]} 29. bxc6 {[%clk 0:04:22.4]} 29... bxc6 {[%clk 0:06:59.4]} 30. Bxg5
{[%clk 0:03:26.3]} 30... e5 {[%clk 0:06:59]} 31. Rf1 {[%clk 0:03:05.9]} 31...
Rd6 {[%clk 0:06:58]} 32. Rf5 {[%clk 0:02:58.5]} 32... e4 {[%clk 0:06:47.9]} 33.
Ra5 {[%clk 0:02:46.5]} 33... Ke6 {[%clk 0:06:46.3]} 34. Bf5+ {[%clk 0:02:43.9]}
34... Ke7 {[%clk 0:06:47.2]} 35. Rxa7+ {[%clk 0:02:44.8]} 35... Kf8 {[%clk
0:06:46.8]} 36. Kg3 {[%clk 0:02:06.2]} 36... Rd3+ {[%clk 0:06:41.9]} 37. Kf4
{[%clk 0:01:56.6]} 37... Nd5+ {[%clk 0:06:43.8]} 38. Ke5 {[%clk 0:01:53.9]}
38... Rg3 {[%clk 0:06:41.8]} 39. Bh6+ {[%clk 0:01:52.5]} 39... Kg8 {[%clk
0:06:42.8]} 40. Bh7+ {[%clk 0:01:45.6]} 40... Kh8 {[%clk 0:06:42.8]} 41. Bxe4
{[%clk 0:01:47.2]} 41... Kg8 {[%clk 0:06:34.5]} 42. Ke6 {[%clk 0:01:36.3]} 42...
Kh8 {[%clk 0:06:14]} 43. Ra8+ {[%clk 0:01:32.1]} 1-0

[Event "GrandPrix_30.05"]
[Site "Chess.com"]
[Date "2020.05.30"]
[Round "2"]
[White "haddinibilbaoo"]
[Black "iceboy88"]
[Result "0-1"]
[WhiteElo "2128"]
[BlackElo "2347"]
[TimeControl "600+2"]
[EndTime "8:46:58 PDT"]
[Termination "iceboy88 won by resignation"]

1. d4 {[%clk 0:10:01.9]} 1... Nf6 {[%clk 0:09:59.8]} 2. Nf3 {[%clk 0:10:02.9]}
2... c5 {[%clk 0:09:56.5]} 3. d5 {[%clk 0:10:00.9]} 3... b5 {[%clk 0:09:57.5]}
4. a4 {[%clk 0:09:56.1]} 4... b4 {[%clk 0:09:51.2]} 5. c4 {[%clk 0:09:56.7]}
5... g6 {[%clk 0:09:45.5]} 6. b3 {[%clk 0:09:57.2]} 6... Bg7 {[%clk 0:09:46]} 7.
Bb2 {[%clk 0:09:58.4]} 7... O-O {[%clk 0:09:44.1]} 8. Nbd2 {[%clk 0:09:59]} 8...
e6 {[%clk 0:09:41.8]} 9. e4 {[%clk 0:09:57.6]} 9... exd5 {[%clk 0:09:38.7]} 10.
cxd5 {[%clk 0:09:52.7]} 10... Re8 {[%clk 0:09:35.6]} 11. Qc2 {[%clk 0:08:38.2]}
11... Nxe4 {[%clk 0:09:14]} 12. Bxg7 {[%clk 0:07:18.8]} 12... Nc3+ {[%clk
0:07:02.5]} 13. Be5 {[%clk 0:07:17.8]} 13... d6 {[%clk 0:06:59.6]} 14. Ne4
{[%clk 0:06:52.6]} 14... Bf5 {[%clk 0:06:04.8]} 15. Bd3 {[%clk 0:06:52.5]} 15...
Nxe4 {[%clk 0:05:51.6]} 16. Bxe4 {[%clk 0:06:52.5]} 16... Bxe4 {[%clk
0:05:50.8]} 17. Qxe4 {[%clk 0:06:54.4]} 17... Nd7 {[%clk 0:05:39]} 18. O-O
{[%clk 0:06:14.9]} 18... Nxe5 {[%clk 0:05:12.5]} 19. Nd2 {[%clk 0:06:15.5]}
19... f5 {[%clk 0:04:48.4]} 20. Qc2 {[%clk 0:05:59.2]} 20... Qf6 {[%clk
0:04:47.2]} 21. Rae1 {[%clk 0:05:52.5]} 21... Re7 {[%clk 0:04:43.8]} 22. h3
{[%clk 0:05:44.7]} 22... Rae8 {[%clk 0:04:43.7]} 23. f4 {[%clk 0:05:44]} 23...
Nd3 {[%clk 0:04:10.9]} 24. Rxe7 {[%clk 0:05:36.8]} 24... Qd4+ {[%clk 0:04:11.4]}
25. Kh1 {[%clk 0:05:26.1]} 25... Rxe7 {[%clk 0:04:12.4]} 26. Nf3 {[%clk
0:05:23.5]} 26... Qc3 {[%clk 0:04:08.4]} 27. Qd1 {[%clk 0:05:04]} 27... Nxf4
{[%clk 0:03:53.2]} 28. Ng5 {[%clk 0:04:48.1]} 28... Qg3 {[%clk 0:03:38]} 29. Qd2
{[%clk 0:04:30.9]} 29... Qxg5 {[%clk 0:03:34.6]} 30. Rxf4 {[%clk 0:04:30.4]}
30... Re4 {[%clk 0:03:28.8]} 31. g3 {[%clk 0:04:21]} 31... Qxg3 {[%clk
0:03:24.5]} 32. Rxe4 {[%clk 0:04:21.5]} 32... Qxh3+ {[%clk 0:03:05.5]} 33. Kg1
{[%clk 0:04:22.2]} 33... Qg3+ {[%clk 0:02:59.3]} 34. Kh1 {[%clk 0:04:15.4]}
34... fxe4 {[%clk 0:02:57.7]} 0-1

[Event "GrandPrix_30.05"]
[Site "Chess.com"]
[Date "2020.05.30"]
[Round "2"]
[White "Arm-Akiba"]
[Black "mishikomchedlishvili"]
[Result "1/2-1/2"]
[WhiteElo "2847"]
[BlackElo "2447"]
[TimeControl "600+2"]
[EndTime "8:47:00 PDT"]
[Termination "Game drawn by repetition"]

1. d4 {[%clk 0:10:01.9]} 1... Nf6 {[%clk 0:09:59.5]} 2. c4 {[%clk 0:10:02.6]}
2... g6 {[%clk 0:09:57.4]} 3. Nc3 {[%clk 0:10:03.2]} 3... d5 {[%clk 0:09:56.5]}
4. Nf3 {[%clk 0:10:00.8]} 4... Bg7 {[%clk 0:09:56.3]} 5. Bg5 {[%clk 0:10:01.9]}
5... Ne4 {[%clk 0:09:56.1]} 6. Bf4 {[%clk 0:10:03]} 6... Nxc3 {[%clk 0:09:47.7]}
7. bxc3 {[%clk 0:10:03]} 7... c5 {[%clk 0:09:11.3]} 8. e3 {[%clk 0:10:03.2]}
8... O-O {[%clk 0:09:01.2]} 9. cxd5 {[%clk 0:10:02.4]} 9... Qxd5 {[%clk
0:09:01.9]} 10. Be2 {[%clk 0:10:03.6]} 10... cxd4 {[%clk 0:09:00]} 11. cxd4
{[%clk 0:10:04.5]} 11... Nc6 {[%clk 0:08:53.6]} 12. O-O {[%clk 0:09:52.8]} 12...
Bf5 {[%clk 0:08:46.9]} 13. Qa4 {[%clk 0:09:19.6]} 13... Qa5 {[%clk 0:08:46.9]}
14. Qxa5 {[%clk 0:09:19.6]} 14... Nxa5 {[%clk 0:08:47.6]} 15. Nd2 {[%clk
0:09:03.4]} 15... Rfc8 {[%clk 0:08:39.1]} 16. g4 {[%clk 0:09:01]} 16... Be6
{[%clk 0:08:15.3]} 17. Rfc1 {[%clk 0:08:59.7]} 17... Rxc1+ {[%clk 0:07:50.6]}
18. Rxc1 {[%clk 0:08:59.1]} 18... Rc8 {[%clk 0:07:52.2]} 19. Rxc8+ {[%clk
0:09:00.3]} 19... Bxc8 {[%clk 0:07:53.2]} 20. d5 {[%clk 0:09:01.6]} 20... e6
{[%clk 0:06:57.5]} 21. Bc7 {[%clk 0:08:59.4]} 21... b6 {[%clk 0:06:58]} 22. Bb8
{[%clk 0:08:43]} 22... a6 {[%clk 0:06:24.2]} 23. Bc7 {[%clk 0:08:25.3]} 23...
exd5 {[%clk 0:06:24.2]} 24. Bxb6 {[%clk 0:08:16.4]} 24... Nc6 {[%clk 0:06:20.6]}
25. Nb3 {[%clk 0:08:01.4]} 25... Bc3 {[%clk 0:06:04.6]} 26. g5 {[%clk
0:07:00.1]} 26... Kf8 {[%clk 0:04:58.4]} 27. f4 {[%clk 0:06:47.2]} 27... Ke7
{[%clk 0:04:58.4]} 28. Kf2 {[%clk 0:06:47.9]} 28... Kd6 {[%clk 0:04:56]} 29. h4
{[%clk 0:06:10]} 29... Bb4 {[%clk 0:03:39.1]} 30. h5 {[%clk 0:06:02.8]} 30...
Ne7 {[%clk 0:03:26.1]} 31. Bd4 {[%clk 0:05:57.6]} 31... Nf5 {[%clk 0:03:16.2]}
32. Be5+ {[%clk 0:05:51.2]} 32... Kc6 {[%clk 0:03:17.3]} 33. Nd4+ {[%clk
0:05:30.3]} 33... Nxd4 {[%clk 0:03:17.1]} 34. Bxd4 {[%clk 0:05:30.8]} 34... a5
{[%clk 0:03:13.9]} 35. a4 {[%clk 0:05:22.5]} 35... Bd7 {[%clk 0:03:12.6]} 36. h6
{[%clk 0:04:56.1]} 36... Kd6 {[%clk 0:03:12.1]} 37. Bd1 {[%clk 0:04:55.1]} 37...
Bf5 {[%clk 0:03:08.4]} 38. Be2 {[%clk 0:04:44.8]} 38... Bd7 {[%clk 0:03:06.2]}
39. Bd1 {[%clk 0:04:32.9]} 39... Bf5 {[%clk 0:03:03.8]} 40. Be2 {[%clk
0:04:29.9]} 40... Bd7 {[%clk 0:03:03.6]} 1/2-1/2

[Event "GrandPrix_30.05"]
[Site "Chess.com"]
[Date "2020.05.30"]
[Round "2"]
[White "Kobalia"]
[Black "Rikikits"]
[Result "1-0"]
[WhiteElo "2402"]
[BlackElo "2633"]
[TimeControl "600+2"]
[EndTime "8:47:04 PDT"]
[Termination "Kobalia won by resignation"]

1. e4 {[%clk 0:10:01]} 1... e6 {[%clk 0:10:00.9]} 2. d3 {[%clk 0:09:58.4]} 2...
g6 {[%clk 0:09:53.6]} 3. Nf3 {[%clk 0:09:54.8]} 3... Bg7 {[%clk 0:09:54.6]} 4.
d4 {[%clk 0:09:50.2]} 4... d6 {[%clk 0:09:45.6]} 5. Bd3 {[%clk 0:09:48.3]} 5...
Ne7 {[%clk 0:09:46.5]} 6. O-O {[%clk 0:09:48.7]} 6... Nd7 {[%clk 0:09:46.7]} 7.
Re1 {[%clk 0:09:47.8]} 7... a6 {[%clk 0:09:42.8]} 8. Nbd2 {[%clk 0:09:45]} 8...
c5 {[%clk 0:09:09.9]} 9. c3 {[%clk 0:09:42.3]} 9... O-O {[%clk 0:08:35.6]} 10.
Nf1 {[%clk 0:09:36.5]} 10... b5 {[%clk 0:08:33.6]} 11. Ng3 {[%clk 0:09:32.8]}
11... Bb7 {[%clk 0:08:32.7]} 12. h3 {[%clk 0:09:04.7]} 12... h6 {[%clk
0:08:24.6]} 13. Be3 {[%clk 0:09:04.4]} 13... e5 {[%clk 0:08:22.4]} 14. Qd2
{[%clk 0:08:56.6]} 14... Kh7 {[%clk 0:08:21.2]} 15. Rad1 {[%clk 0:08:52.1]}
15... Qc7 {[%clk 0:08:18.8]} 16. Bb1 {[%clk 0:07:25.1]} 16... Rad8 {[%clk
0:08:17.8]} 17. d5 {[%clk 0:07:22.7]} 17... c4 {[%clk 0:08:11.6]} 18. h4 {[%clk
0:07:18.6]} 18... Nc5 {[%clk 0:08:07.3]} 19. h5 {[%clk 0:07:17.6]} 19... Bc8
{[%clk 0:08:03]} 20. Nh2 {[%clk 0:07:12.2]} 20... Ng8 {[%clk 0:07:19.7]} 21. f4
{[%clk 0:06:42.5]} 21... exf4 {[%clk 0:06:33.8]} 22. Bxf4 {[%clk 0:06:42.3]}
22... Nd7 {[%clk 0:06:35.2]} 23. Nf3 {[%clk 0:06:27.8]} 23... Ne5 {[%clk
0:06:29.4]} 24. Nxe5 {[%clk 0:06:23.1]} 24... Bxe5 {[%clk 0:06:29.6]} 25. Bxe5
{[%clk 0:06:18.2]} 25... dxe5 {[%clk 0:06:31.5]} 26. Rf1 {[%clk 0:05:59.7]}
26... Qb6+ {[%clk 0:06:14.5]} 27. Qf2 {[%clk 0:05:48]} 27... Qxf2+ {[%clk
0:05:49.9]} 28. Rxf2 {[%clk 0:05:48]} 28... Kg7 {[%clk 0:05:51.6]} 29. Rdf1
{[%clk 0:05:47]} 29... g5 {[%clk 0:05:39]} 30. Nf5+ {[%clk 0:05:27.8]} 30...
Bxf5 {[%clk 0:05:38.5]} 31. Rxf5 {[%clk 0:05:28.9]} 31... f6 {[%clk 0:05:35.9]}
32. R5f2 {[%clk 0:05:26.6]} 32... Ne7 {[%clk 0:05:33.7]} 33. b4 {[%clk
0:05:09.1]} 33... Nc8 {[%clk 0:05:32.2]} 34. a4 {[%clk 0:05:07.9]} 34... Nd6
{[%clk 0:05:31.8]} 35. Ra2 {[%clk 0:05:08.4]} 35... Kf7 {[%clk 0:05:12]} 36.
axb5 {[%clk 0:05:07.5]} 36... axb5 {[%clk 0:05:10.7]} 37. Ra7+ {[%clk
0:05:07.6]} 37... Kg8 {[%clk 0:05:09.8]} 38. Bc2 {[%clk 0:05:07.1]} 38... Rf7
{[%clk 0:05:08.8]} 39. Rfa1 {[%clk 0:05:02.7]} 39... Rdd7 {[%clk 0:04:59.6]} 40.
Ra8+ {[%clk 0:05:01.1]} 40... Kg7 {[%clk 0:04:59.4]} 41. Rb8 {[%clk 0:04:55.8]}
41... f5 {[%clk 0:04:51.1]} 42. exf5 {[%clk 0:04:56.1]} 42... Kf6 {[%clk
0:04:51.8]} 43. Rg8 {[%clk 0:04:52.2]} 43... e4 {[%clk 0:04:50.3]} 44. Rg6+
{[%clk 0:04:51]} 44... Ke5 {[%clk 0:04:51.6]} 45. Re6+ {[%clk 0:04:44.4]} 45...
Kf4 {[%clk 0:04:22.7]} 46. f6 {[%clk 0:04:43.5]} 46... g4 {[%clk 0:04:10]} 47.
Ra6 {[%clk 0:04:38.1]} 47... Nf5 {[%clk 0:03:58.2]} 48. Rxe4+ {[%clk 0:04:12.1]}
48... Kg5 {[%clk 0:03:59.1]} 49. Re5 {[%clk 0:04:09.6]} 1-0

[Event "GrandPrix_30.05"]
[Site "Chess.com"]
[Date "2020.05.30"]
[Round "2"]
[White "cukus"]
[Black "chansen64"]
[Result "1-0"]
[WhiteElo "2202"]
[BlackElo "2029"]
[TimeControl "600+2"]
[EndTime "8:47:10 PDT"]
[Termination "cukus won by resignation"]

1. e4 {[%clk 0:09:35.7]} 1... c5 {[%clk 0:09:59.6]} 2. Nf3 {[%clk 0:09:19.2]}
2... Nc6 {[%clk 0:09:59.2]} 3. Nc3 {[%clk 0:09:19]} 3... g6 {[%clk 0:09:59.1]}
4. d4 {[%clk 0:09:18]} 4... cxd4 {[%clk 0:09:59.3]} 5. Nxd4 {[%clk 0:09:19.9]}
5... Bg7 {[%clk 0:10:00.2]} 6. Be3 {[%clk 0:09:19.8]} 6... Nf6 {[%clk
0:09:59.5]} 7. Bc4 {[%clk 0:09:19.9]} 7... Qa5 {[%clk 0:09:59.4]} 8. O-O {[%clk
0:09:20.1]} 8... O-O {[%clk 0:09:59.3]} 9. h3 {[%clk 0:09:20.1]} 9... d6 {[%clk
0:09:59.2]} 10. Bb3 {[%clk 0:09:19.3]} 10... Bd7 {[%clk 0:09:58.8]} 11. Re1
{[%clk 0:09:19.1]} 11... Rac8 {[%clk 0:09:59.1]} 12. Qe2 {[%clk 0:08:34.4]}
12... a6 {[%clk 0:09:19.8]} 13. Rad1 {[%clk 0:08:23.2]} 13... b5 {[%clk
0:09:04.7]} 14. a3 {[%clk 0:07:10.6]} 14... Rfd8 {[%clk 0:07:39.4]} 15. Nf3
{[%clk 0:06:12.3]} 15... Be8 {[%clk 0:07:17.8]} 16. Nd5 {[%clk 0:05:51.4]} 16...
Nxd5 {[%clk 0:07:12.2]} 17. exd5 {[%clk 0:05:51]} 17... Ne5 {[%clk 0:07:01.5]}
18. Nxe5 {[%clk 0:05:50.7]} 18... Bxe5 {[%clk 0:06:57.1]} 19. Bd4 {[%clk
0:05:17.1]} 19... Bf6 {[%clk 0:06:35.7]} 20. c3 {[%clk 0:05:06.7]} 20... Qc7
{[%clk 0:06:27.7]} 21. Qf3 {[%clk 0:05:00.9]} 21... Kg7 {[%clk 0:06:13.3]} 22.
h4 {[%clk 0:04:47]} 22... h5 {[%clk 0:06:02.2]} 23. Re3 {[%clk 0:04:00]} 23...
Bxd4 {[%clk 0:05:22.4]} 24. Rxd4 {[%clk 0:03:57.1]} 24... f6 {[%clk 0:05:09.9]}
25. g4 {[%clk 0:03:49.1]} 25... hxg4 {[%clk 0:05:06]} 26. Rxg4 {[%clk
0:03:34.6]} 26... Bf7 {[%clk 0:04:57.8]} 27. Bc2 {[%clk 0:03:07.8]} 27... Rh8
{[%clk 0:04:49.6]} 28. Bxg6 {[%clk 0:02:31.3]} 28... Bxg6 {[%clk 0:04:48.2]} 29.
Qf5 {[%clk 0:02:26.4]} 29... Rh6 {[%clk 0:04:47.9]} 30. h5 {[%clk 0:02:27.2]}
30... Rg8 {[%clk 0:04:42.2]} 31. Reg3 {[%clk 0:02:01.7]} 1-0